[Event "Early-Titled-Tuesday-Blitz-March-05-2024"]
[Site "Chess.com"]
[Date "2024.03.05"]
[Round "2"]
[White "Sjakkerntobi"]
[Black "MikeSailer"]
[Result "1-0"]
[WhiteElo "2463"]
[BlackElo "2175"]
[TimeControl "180+1"]
[EndTime "8:14:32 PST"]
[Termination "Sjakkerntobi won by resignation"]

1. e4 {[%clk 0:03:00.9]} 1... d5 {[%clk 0:03:00]} 2. exd5 {[%clk 0:03:00.3]}
2... Qxd5 {[%clk 0:02:59.7]} 3. Nc3 {[%clk 0:03:00.5]} 3... Qd6 {[%clk
0:03:00.3]} 4. d4 {[%clk 0:02:53.9]} 4... c6 {[%clk 0:03:00.4]} 5. Bc4 {[%clk
0:02:53.1]} 5... Nf6 {[%clk 0:02:58.8]} 6. Nge2 {[%clk 0:02:52.6]} 6... Bg4
{[%clk 0:02:56.5]} 7. h3 {[%clk 0:02:51]} 7... Bh5 {[%clk 0:02:56.4]} 8. Qd3
{[%clk 0:02:40.4]} 8... e6 {[%clk 0:02:55.1]} 9. Bf4 {[%clk 0:02:40]} 9... Qd8
{[%clk 0:02:51]} 10. O-O {[%clk 0:02:37]} 10... Bd6 {[%clk 0:02:50.5]} 11. Qg3
{[%clk 0:02:36.3]} 11... Bxf4 {[%clk 0:02:47.6]} 12. Nxf4 {[%clk 0:02:37.2]}
12... Bg6 {[%clk 0:02:48]} 13. Bxe6 {[%clk 0:02:22.6]} 13... O-O {[%clk
0:02:37.9]} 14. Nxg6 {[%clk 0:02:10.7]} 14... hxg6 {[%clk 0:02:33.2]} 15. Bb3
{[%clk 0:02:09.7]} 15... Qxd4 {[%clk 0:02:18.9]} 16. Qxg6 {[%clk 0:02:07.2]}
16... Nd5 {[%clk 0:02:18.6]} 17. Bxd5 {[%clk 0:01:34]} 17... cxd5 {[%clk
0:02:08.8]} 18. Qg5 {[%clk 0:01:33.4]} 18... Qb4 {[%clk 0:02:02.7]} 19. Nxd5
{[%clk 0:01:32]} 1-0

[Event "Early-Titled-Tuesday-Blitz-March-05-2024"]
[Site "Chess.com"]
[Date "2024.03.05"]
[Round "2"]
[White "Kotofeyca"]
[Black "xiaopang123"]
[Result "1-0"]
[WhiteElo "2457"]
[BlackElo "2130"]
[TimeControl "180+1"]
[EndTime "8:14:41 PST"]
[Termination "Kotofeyca won by resignation"]

1. d4 {[%clk 0:03:00.9]} 1... d5 {[%clk 0:02:59.6]} 2. c4 {[%clk 0:03:01]} 2...
c6 {[%clk 0:02:59.9]} 3. Nc3 {[%clk 0:03:01.3]} 3... Nf6 {[%clk 0:03:00.1]} 4.
cxd5 {[%clk 0:03:01.5]} 4... cxd5 {[%clk 0:03:00]} 5. Bf4 {[%clk 0:03:02.1]}
5... Nc6 {[%clk 0:02:59.5]} 6. e3 {[%clk 0:03:02.6]} 6... a6 {[%clk 0:02:59.2]}
7. Nf3 {[%clk 0:02:58.4]} 7... Bf5 {[%clk 0:02:34.5]} 8. Ne5 {[%clk 0:02:53.8]}
8... e6 {[%clk 0:02:30.3]} 9. Qa4 {[%clk 0:02:49.9]} 9... Qa5 {[%clk 0:02:09.3]}
10. Nxc6 {[%clk 0:02:25.6]} 10... Qxa4 {[%clk 0:02:06.5]} 11. Nxa4 {[%clk
0:02:26.5]} 11... bxc6 {[%clk 0:02:07.2]} 12. a3 {[%clk 0:02:05.6]} 12... Nd7
{[%clk 0:02:01.6]} 13. Rc1 {[%clk 0:01:58.7]} 13... f6 {[%clk 0:01:37.5]} 14.
Rxc6 {[%clk 0:01:52.4]} 14... e5 {[%clk 0:01:37.4]} 15. Bg3 {[%clk 0:01:46.2]}
15... a5 {[%clk 0:01:30]} 1-0

[Event "Early-Titled-Tuesday-Blitz-March-05-2024"]
[Site "Chess.com"]
[Date "2024.03.05"]
[Round "2"]
[White "aridannie"]
[Black "Iskusnyh"]
[Result "0-1"]
[WhiteElo "2392"]
[BlackElo "2698"]
[TimeControl "180+1"]
[EndTime "8:14:59 PST"]
[Termination "Iskusnyh won by resignation"]

1. d4 {[%clk 0:03:00.9]} 1... d5 {[%clk 0:02:59.5]} 2. Bg5 {[%clk 0:02:59.1]}
2... h6 {[%clk 0:02:58.6]} 3. Bh4 {[%clk 0:02:58.9]} 3... c5 {[%clk 0:02:59.2]}
4. e3 {[%clk 0:02:56]} 4... Nc6 {[%clk 0:02:55.7]} 5. c3 {[%clk 0:02:51.9]} 5...
Qb6 {[%clk 0:02:45.3]} 6. Qc1 {[%clk 0:02:39.4]} 6... Bf5 {[%clk 0:02:42.8]} 7.
Nd2 {[%clk 0:02:31.9]} 7... cxd4 {[%clk 0:02:40.5]} 8. exd4 {[%clk 0:02:30.3]}
8... Rc8 {[%clk 0:02:39.6]} 9. Ngf3 {[%clk 0:01:52]} 9... Nb4 {[%clk 0:02:34.7]}
10. cxb4 {[%clk 0:01:51.5]} 10... Rxc1+ {[%clk 0:02:33.8]} 11. Rxc1 {[%clk
0:01:52.4]} 11... Nf6 {[%clk 0:02:21.7]} 12. a3 {[%clk 0:01:46.5]} 12... g5
{[%clk 0:02:16.4]} 13. Bg3 {[%clk 0:01:45.9]} 13... Bg7 {[%clk 0:02:16.9]} 14.
Be2 {[%clk 0:01:31.6]} 14... O-O {[%clk 0:02:12.9]} 15. O-O {[%clk 0:01:30.8]}
15... g4 {[%clk 0:02:10.7]} 16. Ne5 {[%clk 0:01:26.9]} 16... Qxd4 {[%clk
0:02:05.1]} 17. Nb3 {[%clk 0:01:21.9]} 17... Qxb2 {[%clk 0:02:03.9]} 0-1

[Event "Early-Titled-Tuesday-Blitz-March-05-2024"]
[Site "Chess.com"]
[Date "2024.03.05"]
[Round "2"]
[White "Rokis13"]
[Black "Vaathi_Coming"]
[Result "0-1"]
[WhiteElo "2581"]
[BlackElo "2892"]
[TimeControl "180+1"]
[EndTime "8:15:08 PST"]
[Termination "Vaathi_Coming won by resignation"]

1. e4 {[%clk 0:03:00.9]} 1... e6 {[%clk 0:02:59.4]} 2. d3 {[%clk 0:03:01]} 2...
d5 {[%clk 0:03:00.3]} 3. Nd2 {[%clk 0:03:01.7]} 3... c5 {[%clk 0:02:59.9]} 4.
Ngf3 {[%clk 0:03:01.8]} 4... Nc6 {[%clk 0:03:00.6]} 5. g3 {[%clk 0:03:02.1]}
5... g6 {[%clk 0:02:51.6]} 6. Bg2 {[%clk 0:03:02.2]} 6... Bg7 {[%clk 0:02:51.9]}
7. O-O {[%clk 0:03:02.5]} 7... Nge7 {[%clk 0:02:42.9]} 8. Qe2 {[%clk 0:02:58.6]}
8... O-O {[%clk 0:02:43]} 9. a4 {[%clk 0:02:54.4]} 9... b6 {[%clk 0:02:41.2]}
10. Re1 {[%clk 0:02:47.6]} 10... Nb4 {[%clk 0:02:28.1]} 11. Nf1 {[%clk 0:02:08]}
11... dxe4 {[%clk 0:02:27.5]} 12. Qxe4 {[%clk 0:02:05.5]} 12... Nxc2 {[%clk
0:02:27.5]} 13. Qxa8 {[%clk 0:02:05.5]} 13... Nxa1 {[%clk 0:02:27.6]} 14. Qxa7
{[%clk 0:02:05.8]} 14... Nc6 {[%clk 0:02:26.5]} 15. Qa8 {[%clk 0:01:56.2]} 15...
Qd7 {[%clk 0:02:26.5]} 16. Bf4 {[%clk 0:01:22.3]} 16... Nc2 {[%clk 0:02:08.9]}
17. Rc1 {[%clk 0:01:19.2]} 17... N2b4 {[%clk 0:01:57.4]} 18. d4 {[%clk
0:01:01.1]} 18... Bb7 {[%clk 0:01:55.1]} 19. Qxf8+ {[%clk 0:01:00.7]} 19... Bxf8
{[%clk 0:01:56]} 20. dxc5 {[%clk 0:01:01.5]} 20... Bxc5 {[%clk 0:01:55.3]} 0-1

[Event "Early-Titled-Tuesday-Blitz-March-05-2024"]
[Site "Chess.com"]
[Date "2024.03.05"]
[Round "2"]
[White "sergeikim"]
[Black "Sharafiev_Azat"]
[Result "0-1"]
[WhiteElo "2598"]
[BlackElo "2404"]
[TimeControl "180+1"]
[EndTime "8:15:26 PST"]
[Termination "Sharafiev_Azat won by resignation"]

1. d4 {[%clk 0:03:00.9]} 1... Nf6 {[%clk 0:02:59.3]} 2. c4 {[%clk 0:03:00.9]}
2... g6 {[%clk 0:02:59.8]} 3. Nc3 {[%clk 0:03:01]} 3... d5 {[%clk 0:03:00.2]} 4.
cxd5 {[%clk 0:03:00.7]} 4... Nxd5 {[%clk 0:03:01.1]} 5. e4 {[%clk 0:03:00.9]}
5... Nxc3 {[%clk 0:03:01.7]} 6. bxc3 {[%clk 0:03:01.5]} 6... Bg7 {[%clk
0:03:01.7]} 7. Bc4 {[%clk 0:03:01.7]} 7... c5 {[%clk 0:03:01.5]} 8. Ne2 {[%clk
0:03:01.9]} 8... O-O {[%clk 0:03:00.9]} 9. O-O {[%clk 0:03:01]} 9... cxd4 {[%clk
0:02:58]} 10. cxd4 {[%clk 0:03:00.8]} 10... Nc6 {[%clk 0:02:58.5]} 11. Be3
{[%clk 0:03:01]} 11... e6 {[%clk 0:02:56]} 12. Qd2 {[%clk 0:03:00.5]} 12... b6
{[%clk 0:02:54.4]} 13. Rfd1 {[%clk 0:02:56.7]} 13... Bb7 {[%clk 0:02:54.4]} 14.
Bh6 {[%clk 0:02:56.1]} 14... Rc8 {[%clk 0:02:44]} 15. Bxg7 {[%clk 0:02:55.1]}
15... Kxg7 {[%clk 0:02:44.9]} 16. Rac1 {[%clk 0:02:46.3]} 16... Qh4 {[%clk
0:02:42.9]} 17. Ng3 {[%clk 0:02:38.8]} 17... Rfd8 {[%clk 0:02:41.8]} 18. d5
{[%clk 0:02:39]} 18... Ne5 {[%clk 0:02:39.8]} 19. Qb2 {[%clk 0:02:31.9]} 19...
Qf6 {[%clk 0:02:38.8]} 20. Qe2 {[%clk 0:02:22.9]} 20... Nxc4 {[%clk 0:02:36.2]}
21. Rxc4 {[%clk 0:02:22.2]} 21... Ba6 {[%clk 0:02:19.2]} 22. e5 {[%clk
0:02:16.2]} 22... Qg5 {[%clk 0:02:19.2]} 23. h4 {[%clk 0:01:47.2]} 23... Bxc4
{[%clk 0:02:18.4]} 24. Qxc4 {[%clk 0:01:46.4]} 24... Rxc4 {[%clk 0:02:15.4]} 25.
hxg5 {[%clk 0:01:46.7]} 25... Rxd5 {[%clk 0:02:15.4]} 26. Re1 {[%clk 0:01:45.1]}
26... Rdc5 {[%clk 0:02:13.4]} 27. Kh2 {[%clk 0:01:43]} 27... Rc1 {[%clk
0:02:03.3]} 28. Re3 {[%clk 0:01:39.7]} 28... R5c3 {[%clk 0:02:03.3]} 29. Re2
{[%clk 0:01:34.2]} 29... R3c2 {[%clk 0:02:03.4]} 30. Re3 {[%clk 0:01:33.5]}
30... Rxf2 {[%clk 0:02:00.5]} 31. Ne4 {[%clk 0:01:33.2]} 31... Rf5 {[%clk
0:01:55.2]} 32. Nf6 {[%clk 0:01:23.8]} 32... Rxg5 {[%clk 0:01:55.2]} 0-1

[Event "Early-Titled-Tuesday-Blitz-March-05-2024"]
[Site "Chess.com"]
[Date "2024.03.05"]
[Round "2"]
[White "RantomOpening"]
[Black "Grandelicious"]
[Result "0-1"]
[WhiteElo "2584"]
[BlackElo "2902"]
[TimeControl "180+1"]
[EndTime "8:15:27 PST"]
[Termination "Grandelicious won by resignation"]

1. c4 {[%clk 0:02:59.2]} 1... c6 {[%clk 0:02:57]} 2. Nf3 {[%clk 0:02:58.4]} 2...
d5 {[%clk 0:02:57.5]} 3. e3 {[%clk 0:02:58.6]} 3... Nf6 {[%clk 0:02:55]} 4. Nc3
{[%clk 0:02:58.9]} 4... Nbd7 {[%clk 0:02:51.8]} 5. d4 {[%clk 0:02:57.5]} 5... e6
{[%clk 0:02:50.1]} 6. b3 {[%clk 0:02:57.1]} 6... Bb4 {[%clk 0:02:48.8]} 7. Bd2
{[%clk 0:02:57.1]} 7... O-O {[%clk 0:02:47]} 8. Bd3 {[%clk 0:02:56.6]} 8... Qe7
{[%clk 0:02:44.5]} 9. Ne5 {[%clk 0:02:53.6]} 9... Nxe5 {[%clk 0:02:42.8]} 10.
dxe5 {[%clk 0:02:54.5]} 10... Nd7 {[%clk 0:02:43.3]} 11. f4 {[%clk 0:02:54.4]}
11... f6 {[%clk 0:02:42.1]} 12. Qh5 {[%clk 0:02:53.9]} 12... g6 {[%clk
0:02:39.1]} 13. Qh6 {[%clk 0:02:27.5]} 13... fxe5 {[%clk 0:02:37]} 14. h4 {[%clk
0:02:26.1]} 14... e4 {[%clk 0:02:30.6]} 15. Bc2 {[%clk 0:02:10]} 15... Qf6
{[%clk 0:02:21.5]} 16. Nxe4 {[%clk 0:01:13.3]} 16... dxe4 {[%clk 0:02:06.6]} 17.
Bxb4 {[%clk 0:01:07.7]} 17... Qxa1+ {[%clk 0:02:06.7]} 18. Kf2 {[%clk
0:01:07.7]} 18... Qxh1 {[%clk 0:02:04.2]} 19. Bc3 {[%clk 0:01:01.8]} 19... Nf6
{[%clk 0:01:37.9]} 20. Bxe4 {[%clk 0:00:58.5]} 0-1

[Event "Early-Titled-Tuesday-Blitz-March-05-2024"]
[Site "Chess.com"]
[Date "2024.03.05"]
[Round "2"]
[White "chessamical"]
[Black "FuenfgegenWilly"]
[Result "1-0"]
[WhiteElo "2126"]
[BlackElo "2434"]
[TimeControl "180+1"]
[EndTime "8:15:28 PST"]
[Termination "chessamical won by resignation"]

1. d4 {[%clk 0:02:59.6]} 1... Na6 {[%clk 0:03:00.9]} 2. e4 {[%clk 0:02:59.1]}
2... c6 {[%clk 0:03:01.7]} 3. Nc3 {[%clk 0:02:55.2]} 3... Nc7 {[%clk 0:03:01.6]}
4. Bf4 {[%clk 0:02:52.6]} 4... g6 {[%clk 0:03:02.5]} 5. Qd2 {[%clk 0:02:51.7]}
5... Bg7 {[%clk 0:03:02.9]} 6. O-O-O {[%clk 0:02:51.5]} 6... d5 {[%clk
0:03:03.2]} 7. e5 {[%clk 0:02:50.3]} 7... Ne6 {[%clk 0:03:01.3]} 8. Be3 {[%clk
0:02:49.6]} 8... c5 {[%clk 0:03:00.7]} 9. Nf3 {[%clk 0:02:39.3]} 9... cxd4
{[%clk 0:02:57.9]} 10. Nxd4 {[%clk 0:02:39.1]} 10... Bxe5 {[%clk 0:02:56.4]} 11.
Bb5+ {[%clk 0:02:39.7]} 11... Kf8 {[%clk 0:02:56.3]} 12. Nxe6+ {[%clk 0:02:25]}
12... Bxe6 {[%clk 0:02:57.2]} 13. Bd4 {[%clk 0:02:22]} 13... Bxd4 {[%clk
0:02:55.8]} 14. Qxd4 {[%clk 0:02:21.5]} 14... Nf6 {[%clk 0:02:56.2]} 15. h4
{[%clk 0:02:18.6]} 15... h5 {[%clk 0:02:54.8]} 16. Bc4 {[%clk 0:02:10.4]} 16...
Qa5 {[%clk 0:02:42.8]} 17. Bxd5 {[%clk 0:02:08.1]} 17... Rd8 {[%clk 0:02:37.5]}
18. Qe5 {[%clk 0:01:04.3]} 18... Bxd5 {[%clk 0:02:31.7]} 19. Rhe1 {[%clk
0:01:01]} 19... Be6 {[%clk 0:02:29.3]} 20. Qxa5 {[%clk 0:00:50.1]} 20... Rxd1+
{[%clk 0:02:19.2]} 21. Rxd1 {[%clk 0:00:50.5]} 21... Kg7 {[%clk 0:02:19.2]} 22.
Rd8 {[%clk 0:00:50.5]} 22... Rh6 {[%clk 0:02:16.9]} 23. Qe5 {[%clk 0:00:46.8]}
23... a6 {[%clk 0:02:14]} 24. Ne4 {[%clk 0:00:46.3]} 24... b5 {[%clk 0:02:12]}
25. Ng5 {[%clk 0:00:46.2]} 25... Bf5 {[%clk 0:02:07.2]} 26. Qxe7 {[%clk
0:00:45.3]} 1-0

[Event "Early-Titled-Tuesday-Blitz-March-05-2024"]
[Site "Chess.com"]
[Date "2024.03.05"]
[Round "2"]
[White "Hongjin"]
[Black "pr1105"]
[Result "1-0"]
[WhiteElo "2671"]
[BlackElo "2349"]
[TimeControl "180+1"]
[EndTime "8:15:29 PST"]
[Termination "Hongjin won by resignation"]

1. e4 {[%clk 0:02:59.9]} 1... e5 {[%clk 0:03:00.5]} 2. Nf3 {[%clk 0:02:59.6]}
2... Nc6 {[%clk 0:03:01.1]} 3. Bc4 {[%clk 0:02:59.4]} 3... Nf6 {[%clk
0:03:00.7]} 4. d3 {[%clk 0:02:59.6]} 4... Be7 {[%clk 0:03:00.5]} 5. c3 {[%clk
0:02:59.6]} 5... O-O {[%clk 0:03:00.4]} 6. a4 {[%clk 0:03:00.1]} 6... d5 {[%clk
0:02:58.5]} 7. exd5 {[%clk 0:03:00.2]} 7... Nxd5 {[%clk 0:02:59.4]} 8. O-O
{[%clk 0:03:00.7]} 8... Bg4 {[%clk 0:02:56.1]} 9. a5 {[%clk 0:02:59.7]} 9... a6
{[%clk 0:02:15.7]} 10. Re1 {[%clk 0:02:58.2]} 10... Nf6 {[%clk 0:01:44.6]} 11.
h3 {[%clk 0:02:53.2]} 11... Bh5 {[%clk 0:01:44.6]} 12. Nbd2 {[%clk 0:02:52.3]}
12... Bd6 {[%clk 0:01:42.5]} 13. Nf1 {[%clk 0:02:47]} 13... Qd7 {[%clk
0:01:36.8]} 14. Ng3 {[%clk 0:02:46.8]} 14... Bg6 {[%clk 0:01:36.7]} 15. Bg5
{[%clk 0:02:44]} 15... Kh8 {[%clk 0:01:23.4]} 16. Nh4 {[%clk 0:02:33.6]} 16...
Ng8 {[%clk 0:01:17.7]} 17. Nxg6+ {[%clk 0:02:22.5]} 17... hxg6 {[%clk
0:01:18.2]} 18. Re4 {[%clk 0:02:19.5]} 18... Kh7 {[%clk 0:01:11.7]} 19. Qd2
{[%clk 0:02:02.3]} 1-0

[Event "Early-Titled-Tuesday-Blitz-March-05-2024"]
[Site "Chess.com"]
[Date "2024.03.05"]
[Round "2"]
[White "NM_Antelacus"]
[Black "erlesfar"]
[Result "1/2-1/2"]
[WhiteElo "2261"]
[BlackElo "2479"]
[TimeControl "180+1"]
[EndTime "8:15:29 PST"]
[Termination "Game drawn by agreement"]

1. e4 {[%clk 0:03:00.9]} 1... c5 {[%clk 0:02:53.1]} 2. c4 {[%clk 0:03:00]} 2...
Nc6 {[%clk 0:02:47.8]} 3. Ne2 {[%clk 0:02:58.7]} 3... Nf6 {[%clk 0:02:47.6]} 4.
Nbc3 {[%clk 0:02:57.8]} 4... e6 {[%clk 0:02:46.7]} 5. g3 {[%clk 0:02:56.8]} 5...
Be7 {[%clk 0:02:46.3]} 6. Bg2 {[%clk 0:02:56.7]} 6... O-O {[%clk 0:02:45.4]} 7.
O-O {[%clk 0:02:56.5]} 7... b6 {[%clk 0:02:42.5]} 8. d3 {[%clk 0:02:56.1]} 8...
Bb7 {[%clk 0:02:42.6]} 9. f4 {[%clk 0:02:53.7]} 9... Nb4 {[%clk 0:02:42.4]} 10.
a3 {[%clk 0:02:52.2]} 10... Nc6 {[%clk 0:02:37.7]} 11. e5 {[%clk 0:02:50.9]}
11... Ne8 {[%clk 0:02:37.1]} 12. Ne4 {[%clk 0:02:50.2]} 12... d5 {[%clk
0:02:36.1]} 13. exd6 {[%clk 0:02:49.4]} 13... Nxd6 {[%clk 0:02:35.7]} 14. N2c3
{[%clk 0:02:43.1]} 14... Nxe4 {[%clk 0:02:34.1]} 15. dxe4 {[%clk 0:02:36.5]}
15... Qd4+ {[%clk 0:02:31.3]} 16. Qxd4 {[%clk 0:02:34.5]} 16... Nxd4 {[%clk
0:02:32.2]} 17. Kf2 {[%clk 0:02:25.6]} 17... Rfd8 {[%clk 0:02:29.4]} 18. Be3
{[%clk 0:02:24.1]} 18... Nc2 {[%clk 0:02:27.7]} 19. Rad1 {[%clk 0:02:20.7]}
19... Nxe3 {[%clk 0:02:26]} 20. Kxe3 {[%clk 0:02:20.1]} 20... Bf6 {[%clk
0:02:22.3]} 21. Bf3 {[%clk 0:01:40.9]} 21... Bd4+ {[%clk 0:02:19.1]} 22. Ke2
{[%clk 0:01:40.8]} 22... Rd7 {[%clk 0:02:17.5]} 23. e5 {[%clk 0:01:33.7]} 23...
Bxf3+ {[%clk 0:02:15.3]} 24. Rxf3 {[%clk 0:01:30.3]} 24... Rad8 {[%clk
0:02:14.4]} 25. Rfd3 {[%clk 0:01:29.8]} 25... a6 {[%clk 0:02:01.5]} 26. R1d2
{[%clk 0:01:29.5]} 26... Kf8 {[%clk 0:01:58.5]} 27. Nd1 {[%clk 0:01:28.3]} 27...
Ke8 {[%clk 0:01:57.6]} 28. b3 {[%clk 0:01:28.4]} 28... Bg1 {[%clk 0:01:50.2]}
29. h3 {[%clk 0:01:23.3]} 29... Rxd3 {[%clk 0:01:47.7]} 30. Rxd3 {[%clk
0:01:22.9]} 30... Rxd3 {[%clk 0:01:48.6]} 31. Kxd3 {[%clk 0:01:22.3]} 31... Bd4
{[%clk 0:01:49.5]} 32. Nc3 {[%clk 0:01:17.4]} 32... Bxc3 {[%clk 0:01:43.5]} 33.
Kxc3 {[%clk 0:01:17]} 1/2-1/2

[Event "Early-Titled-Tuesday-Blitz-March-05-2024"]
[Site "Chess.com"]
[Date "2024.03.05"]
[Round "2"]
[White "chezzgirl04"]
[Black "tolimachess"]
[Result "1-0"]
[WhiteElo "2120"]
[BlackElo "2428"]
[TimeControl "180+1"]
[EndTime "8:15:31 PST"]
[Termination "chezzgirl04 won by resignation"]

1. e4 {[%clk 0:02:59.9]} 1... c5 {[%clk 0:02:55.4]} 2. Nf3 {[%clk 0:02:59.8]}
2... e6 {[%clk 0:02:53.4]} 3. d4 {[%clk 0:02:59.5]} 3... cxd4 {[%clk 0:02:54.3]}
4. Nxd4 {[%clk 0:02:59.6]} 4... a6 {[%clk 0:02:54.3]} 5. Nc3 {[%clk 0:02:59.7]}
5... Qc7 {[%clk 0:02:53.5]} 6. Be3 {[%clk 0:02:59.8]} 6... Nf6 {[%clk
0:02:51.1]} 7. Be2 {[%clk 0:02:58.4]} 7... b5 {[%clk 0:02:50.8]} 8. a3 {[%clk
0:02:54.7]} 8... Bb7 {[%clk 0:02:50.3]} 9. f3 {[%clk 0:02:52.6]} 9... d6 {[%clk
0:02:39.9]} 10. O-O {[%clk 0:02:52.3]} 10... Nbd7 {[%clk 0:02:40.1]} 11. Qe1
{[%clk 0:02:49.9]} 11... Be7 {[%clk 0:02:38.7]} 12. Rd1 {[%clk 0:02:49.3]} 12...
O-O {[%clk 0:02:36.5]} 13. Qg3 {[%clk 0:02:49.1]} 13... Ne5 {[%clk 0:02:27]} 14.
f4 {[%clk 0:02:43.3]} 14... Nc4 {[%clk 0:02:26.6]} 15. Bxc4 {[%clk 0:02:40]}
15... Qxc4 {[%clk 0:02:27.5]} 16. e5 {[%clk 0:02:38.6]} 16... Nd5 {[%clk
0:02:21.3]} 17. Nxd5 {[%clk 0:02:34.7]} 17... Bxd5 {[%clk 0:02:22.2]} 18. b3
{[%clk 0:02:17.3]} 18... Qc7 {[%clk 0:02:11.4]} 19. f5 {[%clk 0:02:14.9]} 19...
dxe5 {[%clk 0:01:38.1]} 20. f6 {[%clk 0:02:14.4]} 20... Bxf6 {[%clk 0:01:35.6]}
21. Rxf6 {[%clk 0:02:14.6]} 21... Qc3 {[%clk 0:01:14.7]} 22. Rd3 {[%clk
0:02:09.5]} 22... Qa1+ {[%clk 0:01:12.8]} 23. Rf1 {[%clk 0:02:09.5]} 23... Qxa3
{[%clk 0:01:12.4]} 24. Bh6 {[%clk 0:02:07.7]} 24... g6 {[%clk 0:01:07.6]} 25.
Qxe5 {[%clk 0:02:07.6]} 25... f6 {[%clk 0:01:02.8]} 26. Rxf6 {[%clk 0:02:02.9]}
26... Rxf6 {[%clk 0:00:54.5]} 27. Qxf6 {[%clk 0:02:02.9]} 27... Qc1+ {[%clk
0:00:55.1]} 28. Bxc1 {[%clk 0:02:02.6]} 1-0

[Event "Early-Titled-Tuesday-Blitz-March-05-2024"]
[Site "Chess.com"]
[Date "2024.03.05"]
[Round "2"]
[White "Rosh1610"]
[Black "GMG"]
[Result "0-1"]
[WhiteElo "2448"]
[BlackElo "2710"]
[TimeControl "180+1"]
[EndTime "8:15:32 PST"]
[Termination "GMG won by resignation"]

1. e4 {[%clk 0:03:00.9]} 1... c5 {[%clk 0:02:58.6]} 2. Nf3 {[%clk 0:02:58.6]}
2... Nc6 {[%clk 0:02:59]} 3. d4 {[%clk 0:02:58.9]} 3... cxd4 {[%clk 0:02:59.9]}
4. Nxd4 {[%clk 0:02:59.8]} 4... Nf6 {[%clk 0:03:00.4]} 5. Nc3 {[%clk 0:02:56.3]}
5... e5 {[%clk 0:03:00.5]} 6. Ndb5 {[%clk 0:02:55.3]} 6... d6 {[%clk 0:03:01]}
7. Bg5 {[%clk 0:02:49.1]} 7... a6 {[%clk 0:03:00.8]} 8. Na3 {[%clk 0:02:47.8]}
8... Be6 {[%clk 0:03:01.4]} 9. Nd5 {[%clk 0:02:47.4]} 9... Bxd5 {[%clk
0:02:57.9]} 10. exd5 {[%clk 0:02:47.7]} 10... Ne7 {[%clk 0:02:58.6]} 11. Bxf6
{[%clk 0:02:47.3]} 11... gxf6 {[%clk 0:02:58.5]} 12. c4 {[%clk 0:02:47.9]} 12...
Bh6 {[%clk 0:02:46.4]} 13. Bd3 {[%clk 0:02:44]} 13... Qa5+ {[%clk 0:02:43.5]}
14. Kf1 {[%clk 0:02:41.7]} 14... f5 {[%clk 0:02:40.6]} 15. Qh5 {[%clk
0:02:41.5]} 15... Qd2 {[%clk 0:02:33.3]} 16. Qe2 {[%clk 0:01:44.7]} 16... Qg5
{[%clk 0:02:21]} 17. h4 {[%clk 0:01:42.9]} 17... Qf6 {[%clk 0:02:20.8]} 18. Re1
{[%clk 0:01:39]} 18... e4 {[%clk 0:02:18]} 19. Bb1 {[%clk 0:01:15.8]} 19... O-O
{[%clk 0:02:09.2]} 20. f3 {[%clk 0:01:15.6]} 20... Ng6 {[%clk 0:02:03]} 21. Kg1
{[%clk 0:01:11.4]} 21... Rae8 {[%clk 0:01:55.9]} 22. fxe4 {[%clk 0:01:10.7]}
22... fxe4 {[%clk 0:01:55.3]} 23. h5 {[%clk 0:01:08.4]} 23... Nf4 {[%clk
0:01:49.2]} 24. Qg4+ {[%clk 0:01:07.8]} 24... Kh8 {[%clk 0:01:48.7]} 25. Kh2
{[%clk 0:01:06.9]} 25... Rg8 {[%clk 0:01:45.2]} 0-1

[Event "Early-Titled-Tuesday-Blitz-March-05-2024"]
[Site "Chess.com"]
[Date "2024.03.05"]
[Round "2"]
[White "DuleMudule"]
[Black "RandomNoob04"]
[Result "1-0"]
[WhiteElo "2864"]
[BlackElo "2570"]
[TimeControl "180+1"]
[EndTime "8:15:33 PST"]
[Termination "DuleMudule won by resignation"]

1. d4 {[%clk 0:03:00.9]} 1... Nf6 {[%clk 0:02:59.6]} 2. Bg5 {[%clk 0:03:01.3]}
2... d5 {[%clk 0:02:58.1]} 3. e3 {[%clk 0:03:00.9]} 3... c5 {[%clk 0:02:57.8]}
4. Bxf6 {[%clk 0:03:00.1]} 4... gxf6 {[%clk 0:02:58.7]} 5. c4 {[%clk 0:02:59.5]}
5... cxd4 {[%clk 0:02:54.7]} 6. exd4 {[%clk 0:02:56.9]} 6... e5 {[%clk
0:02:51.9]} 7. Nc3 {[%clk 0:02:51.1]} 7... Bb4 {[%clk 0:02:48.9]} 8. a3 {[%clk
0:02:34.7]} 8... Bxc3+ {[%clk 0:02:41.8]} 9. bxc3 {[%clk 0:02:35.6]} 9... O-O
{[%clk 0:02:38.9]} 10. Bd3 {[%clk 0:02:23.5]} 10... dxc4 {[%clk 0:02:36]} 11.
Bxc4 {[%clk 0:02:21.6]} 11... Qa5 {[%clk 0:02:31.4]} 12. Ne2 {[%clk 0:02:14.9]}
12... Bg4 {[%clk 0:02:23.5]} 13. O-O {[%clk 0:02:02.9]} 13... Bxe2 {[%clk
0:02:16.2]} 14. Qxe2 {[%clk 0:01:56.4]} 14... Qxc3 {[%clk 0:02:17.1]} 15. Rfd1
{[%clk 0:01:39.5]} 15... Nc6 {[%clk 0:02:05.8]} 16. Rac1 {[%clk 0:01:38.7]}
16... Qxa3 {[%clk 0:02:04.3]} 17. Qg4+ {[%clk 0:01:33.7]} 17... Kh8 {[%clk
0:02:04.5]} 18. Qf5 {[%clk 0:01:33.4]} 18... Nxd4 {[%clk 0:02:02.9]} 19. Qxf6+
{[%clk 0:01:29.9]} 19... Kg8 {[%clk 0:02:03.1]} 20. Qxe5 {[%clk 0:01:17.2]}
20... Nc6 {[%clk 0:01:44.3]} 21. Qg5+ {[%clk 0:01:14.9]} 21... Kh8 {[%clk
0:01:44.7]} 22. Qf6+ {[%clk 0:01:15.2]} 22... Kg8 {[%clk 0:01:45.1]} 23. Rc3
{[%clk 0:01:15.8]} 23... Rfd8 {[%clk 0:01:36.2]} 24. Qxf7+ {[%clk 0:01:08]} 1-0